bitfinex/quotes_SOLUSD_20251106
["timestamp","ask_amount","ask_price","bid_price","bid_amount"]
[1762420187517,5.68220522,159.33,159.28,5.68220522]
[1762420187705,20.592,159.35,159.3,5.68220522]
[1762420188012,0.72,159.34,159.3,5.68220522]
[1762420188899,0.72,159.34,159.31,6.27706986]
[1762420190714,0.72,159.34,159.3,27.65332888]
[1762420190910,0.72,159.34,159.3,21.97112366]
[1762420191121,6.40220522,159.34,159.3,21.97112366]
[1762420191618,6.40220522,159.33,159.3,6.2774639]
[1762420191826,18.87089164,159.36,159.31,6.38220522]
[1762420192129,0.72,159.36,159.33,5.68220522]
[1762420192325,0.72,159.36,159.32,5.68220522]
[1762420192502,0.72,159.36,159.31,5.68220522]
[1762420192702,6.40220522,159.36,159.31,6.2767522]
[1762420192907,6.40220522,159.36,159.3,11.95939586]
[1762420193203,5.68220522,159.34,159.3,6.27719064]
[1762420193603,0.71,159.33,159.3,6.27719064]
[1762420196125,0.71,159.33,159.3,5.68220522]
[1762420196328,0.71,159.35,159.31,2.90202085]
[1762420196508,0.71,159.35,159.32,2.18202085]
[1762420197218,0.71,159.35,159.32,22.77402085]
[1762420197922,0.71,159.37,159.32,22.77402085]
[1762420198100,0.71,159.37,159.32,36.28287899]
[1762420198300,0.71,159.37,159.33,8.45830278]
[1762420199227,0.71,159.37,159.34,2.18202085]
[1762420199924,0.71,159.41,159.36,2.18202085]
[1762420200127,0.71,159.41,159.35,8.45722597]
[1762420200128,0.71,159.4,159.35,8.45722597]
[1762420200728,0.71,159.4,159.35,24.14596145]
[1762420200912,0.71,159.4,159.35,8.45722597]
[1762420201499,2.18202085,159.38,159.33,28.56628242]
[1762420201756,0.71,159.4,159.35,2.18202085]
[1762420201935,0.71,159.4,159.36,2.90202085]
[1762420202145,0.71,159.4,159.37,6.27470665]
[1762420202426,0.71,159.42,159.38,2.18202085]
[1762420202622,0.71,159.41,159.38,2.18202085]
[1762420202803,0.71,159.44,159.39,2.18202085]
[1762420203200,0.71,159.44,159.4,2.18202085]
[1762420203430,0.71,159.44,159.41,2.18202085]
[1762420203930,0.71,159.44,159.4,2.18202085]
[1762420204430,0.2,159.46,159.43,5.67523139]
[1762420204652,0.2,159.46,159.45,5.67523139]
[1762420205224,0.2,159.46,159.44,0.72]
[1762420205225,0.2,159.46,159.44,5.67523139]
[1762420205411,0.91,159.46,159.43,5.67523139]
[1762420205629,0.91,159.46,159.41,34.93119399]
[1762420205813,0.71,159.45,159.41,34.93119399]
[1762420206229,0.71,159.45,159.41,35.65119399]
[1762420206553,0.2,159.46,159.41,35.65119399]
[1762420206834,6.58523139,159.46,159.41,13.57289906]
[1762420207247,0.71,159.45,159.41,13.57289906]
[1762420207415,6.38523139,159.45,159.39,22.07924535]
[1762420207619,0.71,159.45,159.39,22.07924535]
[1762420207930,0.71,159.45,159.41,5.67523139]
[1762420208449,0.71,159.45,159.42,6.27273867]
[1762420208949,0.2,159.46,159.44,5.67523139]
[1762420209114,0.2,159.46,159.45,5.67523139]
[1762420209319,1e-08,159.46,159.45,5.67523139]
[1762420209522,1e-08,159.46,159.45,13.69523139]
[1762420210644,1e-08,159.46,159.45,19.96678987]
[1762420212143,1e-08,159.46,159.45,29.75561756]
[1762420215352,0.2,159.5,159.48,20.592]
[1762420215353,1e-08,159.5,159.48,20.592]
[1762420215575,1e-08,159.5,159.49,33.56723139]
[1762420215942,1e-08,159.51,159.5,0.72]
[1762420216143,1e-08,159.51,159.5,6.39523139]
[1762420216785,1e-08,159.51,159.5,12.66482386]
[1762420216954,0.71,159.57,159.53,5.67523139]
[1762420217552,0.2,159.61,159.53,5.67523139]
[1762420217553,1e-08,159.54,159.53,13.69523139]
[1762420217757,1e-08,159.54,159.53,23.48405908]
[1762420218743,1e-08,159.54,159.53,29.75247254]
[1762420219963,1e-08,159.54,159.53,19.96364485]
[1762420221053,1e-08,159.54,159.53,36.35247254]
[1762420221572,1e-08,159.54,159.53,29.75247254]
[1762420222364,1e-08,159.54,159.53,36.35247254]
[1762420222669,1e-08,159.56,159.55,30.38082769]
[1762420222863,1e-08,159.56,159.55,43.35605908]
[1762420223166,1e-08,159.56,159.55,50.31368678]
[1762420225150,1e-08,159.56,159.55,34.1596277]
[1762420225350,0.70000001,159.56,159.54,6.26793021]
[1762420225677,5.67523139,159.55,159.49,5.67523139]
[1762420225863,5.67523139,159.54,159.51,20.592]
[1762420226363,0.7,159.53,159.51,20.592]
[1762420226767,0.7,159.53,159.5,6.26954613]
[1762420227562,6.37523139,159.53,159.49,6.26995148]
[1762420228072,0.7,159.52,159.49,6.26995148]
[1762420230466,1e-08,159.56,159.49,21.94491542]
[1762420230671,0.7,159.54,159.51,5.67523139]
[1762420231763,0.7,159.54,159.52,6.26842174]
[1762420232064,0.7,159.54,159.5,6.2695334]
[1762420232065,6.37523139,159.54,159.5,6.2695334]
[1762420232471,0.7,159.53,159.5,6.2695334]
[1762420232970,0.7,159.53,159.5,11.94476479]
[1762420233589,0.7,159.53,159.5,6.2695334]
[1762420234574,0.7,159.53,159.5,27.61874598]
[1762420234778,0.7,159.53,159.51,5.67523139]
[1762420234986,1e-08,159.56,159.51,5.67523139]
[1762420235292,0.7,159.55,159.51,5.67523139]
[1762420235697,0.7,159.55,159.52,6.26880641]
[1762420236229,1e-08,159.56,159.52,21.94082245]
[1762420236398,0.66,159.55,159.52,21.94082245]
[1762420236598,0.66,159.55,159.52,27.61605384]
[1762420237502,0.66,159.55,159.53,5.67523139]
[1762420237697,0.66,159.55,159.52,27.61605384]
[1762420238806,0.66,159.55,159.52,27.47637484]
[1762420239335,1e-08,159.56,159.52,27.47637484]
[1762420239523,1e-08,159.56,159.55,26.26723139]
[1762420239822,1e-08,159.56,159.55,33.56723139]
[1762420240007,1e-08,159.56,159.55,34.23723139]
[1762420240722,1e-08,159.56,159.55,44.02605908]
[1762420240911,1e-08,159.56,159.55,44.51108056]
[1762420241313,1e-08,159.56,159.55,50.77870826]
[1762420241923,0.2,159.61,159.59,20.592]
[1762420242103,0.67,159.66,159.6,12.97523139]
[1762420242298,0.67,159.66,159.63,7.94803004]
[1762420243011,0.67,159.66,159.64,7.94803004]
[1762420243529,0.67,159.66,159.6,7.97]
[1762420243530,0.67,159.66,159.63,7.94803004]
[1762420243696,0.67,159.66,159.61,6.26527159]
[1762420244022,0.67,159.66,159.61,14.21330163]
[1762420245115,0.67,159.66,159.61,29.87648062]
[1762420245506,8.61803004,159.66,159.6,14.21358461]
[1762420245720,8.61803004,159.66,159.61,7.94803004]
[1762420246030,0.67,159.65,159.61,7.94803004]
[1762420247112,0.67,159.65,159.59,6.26603263]
[1762420247113,7.94803004,159.63,159.59,6.26603263]
[1762420247307,7.94803004,159.63,159.58,6.2664282]
[1762420247525,0.67,159.62,159.58,6.2664282]
[1762420248221,8.61803004,159.62,159.58,6.2664282]
[1762420248410,8.61803004,159.62,159.57,6.26684213]
[1762420248609,0.67,159.61,159.57,29.88197751]
[1762420248820,0.67,159.61,159.58,7.94803004]
[1762420248998,0.67,159.61,159.57,6.26684213]
[1762420250598,0.67,159.61,159.55,43.56027026]
[1762420250599,8.61803004,159.61,159.55,35.84003004]
[1762420250840,8.61803004,159.61,159.56,6.26716176]
[1762420251119,0.67,159.6,159.56,6.26716176]
[1762420251805,0.67,159.61,159.58,7.94803004]
[1762420252497,0.67,159.61,159.59,6.26605677]
[1762420254119,0.67,159.61,159.56,15.24803004]
[1762420254341,0.67,159.61,159.57,6.26684213]
[1762420255028,0.67,159.61,159.58,7.94803004]
[1762420255214,0.67,159.63,159.59,7.94803004]
[1762420255929,0.67,159.63,159.6,7.94803004]
[1762420256536,0.67,159.63,159.6,14.21333063]
[1762420256719,8.61803004,159.63,159.58,21.93222539]
[1762420257030,0.67,159.63,159.58,29.88025543]
[1762420257212,0.67,159.62,159.58,29.88025543]
[1762420258019,0.67,159.62,159.58,14.21413186]
[1762420258218,0.67,159.62,159.58,6.26610182]
[1762420259538,0.67,159.62,159.58,14.21413186]
[1762420260538,0.67,159.62,159.58,29.88025543]
[1762420261609,0.67,159.62,159.59,7.94803004]
[1762420261806,0.67,159.62,159.58,29.88025543]
[1762420262010,7.94803004,159.65,159.59,7.94803004]
[1762420262226,0.67,159.64,159.59,7.94803004]
[1762420262611,0.67,159.64,159.6,6.26566416]
[1762420263329,28.54003004,159.68,159.62,7.94803004]
[1762420263528,0.67,159.66,159.62,7.94803004]
[1762420263841,0.67,159.66,159.63,7.94803004]
[1762420264042,0.67,159.68,159.63,7.94803004]
[1762420264418,0.67,159.68,159.63,3.39555919]
[1762420264733,0.67,159.68,159.64,6.26409421]
[1762420265443,0.67,159.68,159.62,25.32263598]
[1762420265646,4.06555919,159.68,159.62,25.32263598]
[1762420266152,0.67,159.67,159.62,25.32263598]
[1762420266327,0.67,159.67,159.62,21.92707679]
[1762420266535,0.67,159.67,159.63,3.39555919]
[1762420266844,0.67,159.67,159.65,6.26370184]
[1762420267145,0.67,159.69,159.65,6.26370184]
[1762420267359,0.67,159.69,159.65,25.31851564]
[1762420267950,0.2,159.7,159.66,4.09555919]
[1762420268336,0.2,159.7,159.66,3.39555919]
[1762420268337,0.87,159.7,159.66,3.39555919]
[1762420269249,0.67,159.69,159.65,7.28]
[1762420269458,0.67,159.69,159.65,13.54344993]
[1762420269639,0.67,159.69,159.65,32.59826373]
[1762420269834,0.67,159.69,159.64,17.6396534]
[1762420270232,0.67,159.69,159.65,3.39555919]
[1762420270757,3.39555919,159.68,159.64,6.26409421]
[1762420271055,0.67,159.67,159.64,6.26409421]
[1762420271430,0.67,159.67,159.63,25.32063139]
[1762420272263,0.67,159.67,159.63,6.26448662]
[1762420272436,0.67,159.67,159.63,25.32126237]
[1762420273959,0.67,159.67,159.63,31.92126237]
[1762420274860,0.67,159.67,159.63,32.62126237]
[1762420276176,0.67,159.67,159.63,31.92126237]
[1762420276346,0.67,159.67,159.63,12.86448662]
[1762420276529,0.67,159.67,159.62,27.872]
[1762420276530,3.39555919,159.64,159.55,0.7]
[1762420276730,3.39555919,159.62,159.56,10.67555919]
[1762420276925,0.67,159.61,159.56,31.26755919]
[1762420277670,4.06555919,159.61,159.57,6.26684213]
[1762420277959,3.39555919,159.6,159.57,6.26684213]
[1762420278161,4.06555919,159.6,159.57,6.26684213]
[1762420278345,0.67,159.59,159.57,6.26684213]
[1762420278848,0.67,159.59,159.56,6.26714608]
[1762420280336,0.67,159.61,159.56,22.63523331]
[1762420280546,3.39555919,159.62,159.56,22.63523331]
[1762420280547,0.67,159.6,159.56,25.3307925]
[1762420282565,0.67,159.6,159.56,29.89073106]
[1762420282753,0.67,159.6,159.56,36.49073106]
[1762420283545,0.7,159.62,159.57,8.66549775]
[1762420284352,0.7,159.64,159.6,7.95549775]
[1762420284865,7.95549775,159.63,159.58,7.95549775]
[1762420285166,7.95549775,159.62,159.57,15.23549775]
[1762420285472,8.65549775,159.63,159.57,15.23549775]
[1762420285771,7.95549775,159.63,159.58,6.26644942]
[1762420286064,0.7,159.62,159.58,6.26644942]
[1762420286266,0.7,159.62,159.58,14.22194717]
[1762420286571,0.7,159.62,159.59,7.95549775]
[1762420286751,0.7,159.68,159.59,0.71]
[1762420287065,0.7,159.67,159.64,7.95549775]
[1762420287662,0.7,159.67,159.65,6.26370184]
[1762420289570,0.7,159.67,159.64,6.26409421]
[1762420289763,0.7,159.67,159.63,14.21984333]
[1762420290677,7.95549775,159.66,159.61,35.82749775]
[1762420290846,0.7,159.65,159.61,35.82749775]
[1762420291245,0.7,159.65,159.59,21.50155452]
[1762420291451,7.95549775,159.6,159.56,6.26723489]
[1762420291750,7.95549775,159.59,159.55,6.2676277]
[1762420292177,0.7,159.58,159.55,6.2676277]
[1762420292747,8.65549775,159.58,159.55,6.2676277]
[1762420293050,0.7,159.58,159.55,6.2676277]
[1762420293249,0.7,159.58,159.55,14.22312545]
[1762420293860,0.7,159.6,159.55,30.6021947]
[1762420294070,0.7,159.59,159.55,29.8921947]
[1762420294241,8.65549775,159.59,159.55,21.93669695]
[1762420294648,0.7,159.58,159.55,21.93669695]
[1762420294877,8.65549775,159.61,159.56,0.71]
[1762420295061,0.7,159.6,159.55,14.22312545]
[1762420295259,8.65549775,159.6,159.55,14.22312545]
[1762420295865,8.65549775,159.6,159.55,29.8921947]
[1762420296062,0.7,159.59,159.55,29.8921947]
[1762420296749,0.7,159.59,159.55,21.93669695]
[1762420299599,0.67,159.59,159.55,22.61669695]
[1762420299757,8.62549775,159.61,159.56,8.63549775]
[1762420299961,7.95549775,159.63,159.57,7.95549775]
[1762420300165,0.67,159.62,159.57,7.95549775]
[1762420300362,0.67,159.62,159.56,15.91549775]
[1762420300574,8.62549775,159.62,159.56,15.91549775]
[1762420300978,7.95549775,159.62,159.56,15.91549775]
[1762420301159,8.62549775,159.62,159.58,6.26644942]
[1762420301580,0.67,159.61,159.58,6.26644942]
[1762420302778,6.33411965,159.61,159.58,6.26644942]
[1762420302983,0.67,159.63,159.58,6.94644942]
[1762420303195,0.67,159.63,159.58,12.61056907]
[1762420303387,6.33411965,159.63,159.58,28.27669264]
[1762420303692,6.33411965,159.63,159.58,27.59669264]
[1762420303873,0.67,159.62,159.58,28.27669264]
[1762420304389,0.67,159.62,159.58,24.78711775]
[1762420304590,0.67,159.64,159.59,2.85454476]
[1762420304797,0.67,159.64,159.6,2.17454476]
[1762420304984,2.84454476,159.64,159.59,2.17454476]
[1762420305498,0.67,159.63,159.6,6.26566416]
[1762420306404,0.67,159.63,159.6,21.92982456]
[1762420306712,2.84454476,159.66,159.61,0.68]
[1762420306874,0.67,159.66,159.62,2.17454476]
[1762420307597,0.67,159.66,159.63,6.26448662]
[1762420309100,8.43669895,159.69,159.63,24.10024794]
[1762420309404,0.67,159.68,159.63,24.10024794]
[1762420309594,0.67,159.69,159.65,6.26370184]
[1762420310096,0.2,159.7,159.66,2.85454476]
[1762420310401,0.87,159.7,159.66,2.85454476]
[1762420310806,0.67,159.69,159.66,2.17454476]
[1762420311179,0.67,159.69,159.65,31.37750121]
[1762420311502,0.67,159.69,159.65,32.05750121]
[1762420312286,0.67,159.69,159.65,14.22370184]
[1762420312493,0.67,159.69,159.65,16.3982466]
[1762420312702,2.37454476,159.7,159.65,16.3982466]
[1762420312884,0.9,159.7,159.66,2.17454476]
[1762420313699,0.7,159.69,159.65,13.54370184]
[1762420314208,2.17454476,159.68,159.65,6.26370184]
[1762420314685,0.7,159.67,159.64,6.26409421]
[1762420315012,6.46177294,159.7,159.64,6.93409421]
[1762420315306,2.87454476,159.69,159.64,9.10863897]
[1762420315674,0.2,159.7,159.64,9.10863897]
[1762420315885,0.7,159.68,159.64,9.10863897]
[1762420316509,0.7,159.68,159.64,24.76887449]
[1762420318702,2.17454476,159.67,159.63,6.26444131]
[1762420318904,0.7,159.66,159.63,6.26444131]
[1762420319108,2.87454476,159.66,159.63,6.26444131]
[1762420319609,0.7,159.66,159.63,6.26444131]
[1762420320019,0.7,159.66,159.61,36.30156962]
[1762420320200,0.7,159.66,159.62,2.84454476]
[1762420320586,0.7,159.66,159.63,6.26448662]
[1762420321413,2.87454476,159.66,159.63,6.26448662]
[1762420322110,0.7,159.66,159.63,8.43903138]
[1762420322312,0.7,159.68,159.64,2.17454476]
[1762420322811,0.7,159.68,159.65,21.92295645]
[1762420322982,0.2,159.7,159.67,2.17454476]
[1762420323189,0.2,159.7,159.68,2.84454476]
[1762420324218,0.2,159.7,159.68,2.17454476]
[1762420324589,0.2,159.7,159.69,6.26213288]
[1762420325087,9.33639588,159.7,159.66,6.6]
[1762420325292,2.17454476,159.69,159.66,6.6]
[1762420325519,2.17454476,159.68,159.66,6.6]
[1762420325732,2.87454476,159.67,159.66,6.6]
[1762420326430,0.7,159.67,159.66,6.6]
[1762420326612,9.13746202,159.67,159.66,6.6]
[1762420327013,2.87454476,159.67,159.66,6.6]
[1762420327636,0.7,159.67,159.66,6.6]
[1762420327809,9.13746202,159.67,159.66,6.6]
[1762420328310,9.13746202,159.67,159.62,6.26455467]
[1762420328512,0.7,159.66,159.62,6.26455467]
[1762420328732,2.87454476,159.66,159.62,6.26455467]
[1762420329933,0.7,159.66,159.62,6.26455467]
[1762420330329,6.96336533,159.66,159.61,15.03980436]
[1762420330644,9.13791009,159.66,159.61,15.70972154]
[1762420330820,2.17454476,159.63,159.6,6.6]
[1762420331135,2.17454476,159.61,159.55,8.44217246]
[1762420331322,2.17454476,159.6,159.55,21.93669695]
[1762420331521,2.17454476,159.61,159.55,24.78124171]
[1762420332130,2.87454476,159.61,159.55,9.11217246]
[1762420332830,9.13994105,159.61,159.55,9.11217246]
[1762420333036,0.7,159.6,159.55,9.11217246]
[1762420333209,0.7,159.6,159.55,6.2676277]
[1762420333210,2.87454476,159.6,159.55,6.2676277]
[1762420333413,2.17454476,159.58,159.54,6.26802055]
[1762420333616,2.87454476,159.59,159.54,8.44256531]
[1762420333828,15.66299274,159.62,159.56,6.26723489]
[1762420333829,2.87454476,159.6,159.56,6.26723489]
[1762420334219,0.7,159.6,159.56,6.93723489]
[1762420334421,0.7,159.6,159.55,8.4420923]
[1762420334738,9.14021056,159.6,159.55,9.1120923]
[1762420334934,2.87454476,159.6,159.55,9.1120923]
[1762420335124,0.7,159.59,159.55,8.4420923]
[1762420335526,0.7,159.59,159.55,9.1120923]
[1762420335726,0.7,159.59,159.55,8.4420923]
[1762420335941,0.7,159.59,159.54,8.44256531]
[1762420336324,0.7,159.59,159.54,6.93802055]
[1762420336325,2.87454476,159.59,159.54,6.93802055]
[1762420336636,0.7,159.59,159.54,9.11256531]
[1762420336835,0.7,159.58,159.54,9.11256531]
[1762420337210,0.7,159.58,159.54,6.93802055]
[1762420337439,0.7,159.58,159.54,9.11256531]
[1762420337938,2.87454476,159.6,159.54,9.11256531]
[1762420338134,0.7,159.59,159.54,9.11256531]
[1762420338443,0.7,159.59,159.54,15.71256531]
[1762420338624,0.7,159.59,159.55,2.17454476]
[1762420339217,0.7,159.59,159.54,31.3826167]
[1762420340736,0.7,159.61,159.55,12.63337245]
[1762420341041,0.7,159.61,159.56,2.17454476]
[1762420341537,0.7,159.61,159.56,2.84454476]
[1762420341729,2.87454476,159.61,159.55,11.96337245]
[1762420341914,2.87454476,159.61,159.55,12.63337245]
[1762420342240,0.7,159.61,159.55,12.63337245]
[1762420342437,2.87454476,159.61,159.55,12.63337245]
[1762420342936,2.87454476,159.61,159.56,6.26723489]
[1762420343317,0.72,159.6,159.56,6.93723489]
[1762420343523,0.72,159.61,159.56,9.11177965]
[1762420343837,0.72,159.61,159.57,0.67]
[1762420344041,0.72,159.61,159.56,9.11177965]
[1762420344245,0.72,159.61,159.56,31.37986688]
[1762420344456,2.89454476,159.61,159.56,29.20532212]
[1762420344624,2.89454476,159.61,159.56,28.53532212]
[1762420344827,0.72,159.6,159.56,29.20532212]
[1762420345024,0.72,159.6,159.56,12.86723489]
[1762420345025,2.89454476,159.6,159.56,12.86723489]
[1762420345530,0.72,159.59,159.56,12.86723489]
[1762420346040,2.17454476,159.57,159.53,6.26833201]
[1762420346251,2.17454476,159.56,159.53,6.26833201]
[1762420346743,2.89454476,159.56,159.53,6.26833201]
[1762420347848,0.72,159.59,159.54,0.67]
[1762420348144,21.312,159.62,159.55,2.17454476]
[1762420348333,2.89454476,159.61,159.55,2.17454476]
[1762420348535,2.89454476,159.61,159.55,2.84454476]
[1762420348843,0.72,159.6,159.55,2.84454476]
[1762420349228,2.89454476,159.6,159.56,6.26723489]
[1762420349745,0.72,159.59,159.56,6.26723489]
[1762420350648,0.72,159.59,159.56,8.44177965]
[1762420351322,0.72,159.59,159.56,6.26723489]
[1762420351719,0.72,159.59,159.54,6.6]
[1762420351720,2.17454476,159.58,159.54,6.6]
[1762420352028,2.17454476,159.57,159.53,15.6706734]
[1762420352444,2.89454476,159.56,159.55,20.592]
[1762420353253,2.89454476,159.56,159.53,20.592]
[1762420353449,2.89454476,159.55,159.53,20.592]
[1762420353864,0.72,159.54,159.53,20.592]
[1762420354055,0.72,159.55,159.53,20.592]
[1762420354355,2.17454476,159.56,159.51,29.03574418]
[1762420354555,0.72,159.55,159.51,29.03574418]
[1762420355851,0.72,159.55,159.51,44.70874273]
[1762420356055,0.72,159.55,159.52,2.17454476]
[1762420356431,0.72,159.58,159.53,2.17454476]
[1762420356631,2.84454476,159.58,159.53,2.17454476]
[1762420357155,0.67,159.57,159.53,2.17454476]
[1762420357359,0.67,159.57,159.52,2.17454476]
[1762420357652,2.84454476,159.57,159.52,2.17454476]
[1762420358156,0.67,159.56,159.52,2.17454476]
[1762420358542,0.67,159.56,159.52,2.85454476]
[1762420359232,0.67,159.56,159.53,6.26841346]
[1762420362557,4.070323,159.59,159.54,4.080323]
[1762420362763,20.592,159.6,159.56,3.400323]
[1762420363137,21.262,159.6,159.56,3.400323]
[1762420363543,21.262,159.6,159.57,6.26684213]
[1762420363766,9.66531385,159.62,159.57,25.33427047]
[1762420363767,3.400323,159.62,159.57,25.33427047]
[1762420364078,0.67,159.61,159.57,26.01427047]
[1762420364239,0.67,159.61,159.57,22.61394747]
[1762420364665,0.67,159.61,159.57,26.01427047]
[1762420364871,9.74935966,188.57,159.57,26.01427047]
[1762420364872,0.67,159.68,159.6,3.400323]
[1762420365051,0.67,159.68,159.64,3.400323]
[1762420365665,0.67,159.69,159.65,25.32327945]
[1762420366167,0.2,159.7,159.68,3.400323]
[1762420367266,0.2,159.7,159.68,4.080323]
[1762420367475,0.2,159.7,159.69,6.26213288]
[1762420369575,0.2,159.7,159.67,0.68]
[1762420369747,0.2,159.7,159.68,3.400323]
[1762420371591,0.2,159.7,159.69,9.66245588]
[1762420371887,0.2,159.7,159.69,10.34245588]
[1762420374583,0.2,159.7,159.69,6.26213288]
[1762420376802,0.85,159.7,159.67,7.26]
[1762420377165,0.65,159.69,159.66,6.26330953]
[1762420377983,0.2,159.7,159.66,10.34363253]
[1762420378188,0.85,159.7,159.66,9.66363253]
[1762420378395,0.85,159.7,159.66,6.26330953]
[1762420378592,0.2,159.7,159.66,6.26330953]
[1762420378773,0.85,159.7,159.66,9.66363253]
[1762420379276,0.65,159.69,159.66,9.66363253]
[1762420380689,0.65,159.69,159.65,13.52359927]
[1762420380890,22.56749593,159.69,159.61,6.26527159]
[1762420381210,0.65,159.69,159.64,3.400323]
[1762420381586,4.050323,159.69,159.63,13.18915069]
[1762420381791,0.65,159.68,159.64,3.400323]
[1762420381993,4.050323,159.68,159.62,10.660323]
[1762420382181,3.400323,159.67,159.62,10.660323]
[1762420382382,4.050323,159.67,159.62,10.660323]
[1762420382597,0.65,159.66,159.63,6.26448662]
[1762420382902,0.65,159.66,159.63,9.66480962]
[1762420383097,0.65,159.66,159.63,6.26448662]
[1762420383278,4.050323,159.66,159.62,13.52482534]
[1762420383789,0.65,159.65,159.62,13.52482534]
[1762420383981,0.65,159.65,159.62,20.12482534]
[1762420384177,0.65,159.65,159.62,12.86482534]
[1762420385782,4.050323,159.65,159.62,6.26482534]
[1762420385985,3.400323,159.63,159.58,6.26644942]
[1762420386194,3.400323,159.63,159.58,13.52644942]
[1762420386497,0.65,159.62,159.58,13.52644942]
[1762420387679,4.050323,159.62,159.58,6.26644942]
[1762420387888,3.400323,159.6,159.55,6.6]
[1762420388096,3.400323,159.6,159.55,34.452]
[1762420388401,0.65,159.62,159.57,3.400323]
[1762420388913,10.31521779,159.62,159.58,6.26644942]
[1762420389085,0.65,159.61,159.58,6.26644942]
[1762420390401,0.65,159.61,159.57,6.26684213]
[1762420393598,0.65,159.63,159.58,4.080323]
[1762420393909,0.65,159.63,159.59,3.400323]
[1762420394800,0.65,159.63,159.6,6.26566416]
[1762420396709,0.65,159.63,159.59,6.26605677]
[1762420397399,4.050323,159.63,159.59,6.26605677]
[1762420398809,0.65,159.62,159.59,6.26605677]
[1762420399402,4.050323,159.62,159.58,6.6]
[1762420399602,3.400323,159.61,159.58,6.6]
[1762420399789,4.050323,159.61,159.58,6.6]
[1762420399988,0.65,159.61,159.58,6.6]
[1762420400204,0.65,159.61,159.58,16.26675285]
[1762420400819,0.65,159.62,159.58,32.61287642]
[1762420401321,10.31433249,159.65,159.59,4.080323]
[1762420401521,20.592,159.67,159.61,3.400323]
[1762420401811,0.65,159.66,159.62,3.400323]
[1762420402406,0.65,159.66,159.61,3.400323]
[1762420402916,0.65,159.66,159.62,6.26487908]
[1762420403122,0.65,159.66,159.62,25.32739979]
[1762420403995,0.65,159.66,159.62,21.92707679]
[1762420404318,0.65,159.66,159.62,9.66520208]
[1762420404695,0.65,159.66,159.63,3.400323]
[1762420404904,0.65,159.66,159.64,6.26409421]
[1762420405514,0.7,159.68,159.64,9.66441721]
[1762420405722,0.7,159.68,159.64,6.26409421]
[1762420405906,0.7,159.68,159.64,10.33441721]
[1762420406101,0.7,159.68,159.64,9.66441721]
[1762420407117,0.7,159.68,159.64,25.32465273]
[1762420407410,20.792,159.7,159.65,0.67]
[1762420407611,0.9,159.7,159.66,3.400323]
[1762420408208,0.2,159.7,159.66,3.400323]
[1762420408410,0.9,159.7,159.66,3.400323]
[1762420409014,0.9,159.7,159.67,6.26291726]
[1762420409218,0.7,159.69,159.67,6.26291726]
[1762420409807,0.7,159.69,159.65,6.26340771]
[1762420410006,0.7,159.69,159.65,6.93340771]
[1762420410304,0.7,159.69,159.65,10.33373071]
[1762420411621,0.7,159.69,159.65,25.99298532]
[1762420413133,0.7,159.69,159.65,25.32298532]
[1762420413330,4.100323,159.69,159.65,6.26340771]
[1762420413536,4.100323,159.69,159.64,20.1239784]
[1762420413826,4.100323,159.68,159.64,12.8639784]
[1762420414029,0.7,159.67,159.64,12.8639784]
[1762420414712,0.7,159.67,159.64,12.86372139]
[1762420416711,0.7,159.67,159.64,31.92427991]
[1762420417031,0.66,159.69,159.65,4.100323]
[1762420417237,0.66,159.69,159.65,0.7]
[1762420417420,0.66,159.69,159.65,4.100323]
[1762420418527,0.66,159.69,159.66,6.26330953]
[1762420418834,3.600323,159.7,159.67,4.100323]
[1762420418835,0.2,159.7,159.67,4.100323]
[1762420419214,0.86,159.7,159.67,4.100323]
[1762420419415,0.86,159.7,159.67,3.400323]
[1762420421027,0.86,159.7,159.65,7.96]